bitfinex-derivatives/quotes_BTCF0:USTF0_20210102
["timestamp","ask_amount","ask_price","bid_price","bid_amount"]
[1609555672549,0.58274158,29366.0,29365.0,0.00036233]
[1609555672850,0.58274158,29366.0,29364.0,0.00036233]
[1609555673251,0.58274158,29366.0,29365.0,0.00036233]
[1609555673650,0.58315624,29366.0,29364.0,0.00036233]
[1609555674053,0.58315624,29366.0,29365.0,0.00036231]
[1609555674251,0.58274158,29366.0,29365.0,0.00036231]
[1609555674452,0.58315623,29366.0,29364.0,0.00036231]
[1609555674652,0.58315623,29366.0,29365.0,0.00036231]
[1609555674954,0.58315623,29366.0,29364.0,0.00036231]
[1609555675254,0.58315623,29366.0,29365.0,0.00036231]
[1609555675453,0.58274158,29366.0,29365.0,0.00036231]
[1609555675754,0.58315622,29366.0,29364.0,0.00036229]
[1609555676155,0.58315622,29366.0,29365.0,0.00036229]
[1609555676356,0.58274158,29366.0,29365.0,0.00036229]
[1609555676557,0.58315622,29366.0,29365.0,0.18043158]
[1609555676756,0.58315622,29366.0,29365.0,0.18079387]
[1609555677257,0.19275622,29366.0,29365.0,0.18079387]
[1609555677459,0.49515087,29369.0,29365.0,6.58919387]
[1609555677658,0.26715087,29369.0,29365.0,6.6268889]
[1609555677858,0.15445087,29369.0,29368.0,6.0]
[1609555678059,5.087e-05,29369.0,29368.0,7.0]
[1609555678259,0.7388613,29372.0,29368.0,7.0]
[1609555678459,0.7388613,29372.0,29368.0,11.67006432]
[1609555678661,0.7388613,29372.0,29371.0,0.18043158]
[1609555678860,0.7388613,29372.0,29371.0,1.18043158]
[1609555679064,6.13e-05,29372.0,29371.0,1.18043158]
[1609555679262,0.8493684,29374.0,29371.0,1.21849197]
[1609555679464,0.8359684,29374.0,29371.0,1.29076684]
[1609555679663,0.7755684,29374.0,29372.0,0.11033437]
[1609555679863,0.7755684,29374.0,29373.0,7.0]
[1609555680062,0.7755684,29374.0,29373.0,7.7128]
[1609555680263,0.7755684,29374.0,29373.0,7.82312965]
[1609555681464,0.2022684,29374.0,29373.0,7.82312965]
[1609555682865,0.2022684,29374.0,29373.0,6.82312965]
[1609555683466,0.2022684,29374.0,29373.0,6.71316212]
[1609555683866,0.2022684,29374.0,29373.0,1.71316212]
[1609555684066,1.02612202,29396.0,29373.0,1.71316212]
[1609555684266,1.02612202,29396.0,29373.0,1.00036212]
[1609555684469,1.02612202,29396.0,29374.0,0.00036212]
[1609555684667,1.02612202,29396.0,29391.0,0.18043158]
[1609555684869,1.0,29398.0,29391.0,0.18043158]
[1609555685069,1.0,29398.0,29392.0,0.5983]
[1609555685869,1.0,29395.0,29392.0,0.5983]
[1609555686070,1.11981,29395.0,29392.0,0.5983]
[1609555686268,1.11981,29395.0,29380.0,1.0]
[1609555686468,4.5034,29392.0,29380.0,1.0]
[1609555686669,0.31931158,29381.0,29380.0,1.0]
[1609555687771,0.31931158,29381.0,29380.0,1.6025]
[1609555687973,0.31931158,29381.0,29380.0,0.6025]
[1609555694885,0.31931158,29381.0,29378.0,0.18043158]
[1609555703092,0.31931158,29381.0,29379.0,0.00036214]
[1609555703294,0.31931158,29381.0,29380.0,4.4542]
[1609555703693,0.31931158,29381.0,29380.0,4.45456214]
[1609555712006,0.31931158,29381.0,29380.0,0.00036214]
[1609555712406,0.31931158,29381.0,29379.0,5.01956214]
[1609555712606,0.31931158,29381.0,29380.0,0.00036214]
[1609555714811,0.31972601,29381.0,29380.0,0.00036214]
[1609555715012,0.31931158,29381.0,29380.0,0.00036214]
[1609555718919,0.31972604,29381.0,29380.0,0.00036214]
[1609555727739,0.31931158,29381.0,29380.0,0.00036214]
[1609555727936,0.31972603,29381.0,29380.0,0.00036214]
[1609555728136,0.31931158,29381.0,29380.0,0.00036214]
[1609555732041,0.31972604,29381.0,29380.0,0.00036214]
[1609555732240,5.21532604,29381.0,29380.0,0.00036214]
[1609555732441,5.21532604,29381.0,29371.0,0.00036504]
[1609555732640,5.21532604,29381.0,29380.0,0.00036504]
[1609555732841,5.21491158,29381.0,29372.0,0.00036508]
[1609555733041,0.18043158,29373.0,29372.0,0.00036508]
[1609555733241,0.30707158,29373.0,29370.0,6.304]
[1609555733442,0.30748611,29373.0,29372.0,0.00036509]
[1609555733642,0.00041459,29372.0,29371.0,0.00036514]
[1609555734043,1.30748619,29373.0,29372.0,0.00036516]
[1609555734241,1.30748619,29373.0,29371.0,0.00036516]
[1609555734242,1.30707158,29373.0,29371.0,0.00036516]
[1609555734446,1.30707158,29373.0,29370.0,5.304]
[1609555734447,1.30748617,29373.0,29372.0,0.00036514]
[1609555734844,1.12664,29373.0,29372.0,0.00036514]
[1609555735043,1.12705461,29373.0,29371.0,0.00036516]
[1609555735245,1.12705461,29373.0,29372.0,0.00036516]
[1609555735444,1.30748619,29373.0,29372.0,0.00036516]
[1609555735645,1.30707158,29373.0,29372.0,0.00036516]
[1609555735845,1.30707158,29373.0,29371.0,0.00036516]
[1609555736046,1.30707158,29373.0,29372.0,0.00036516]
[1609555736644,1.30707158,29373.0,29370.0,5.27016516]
[1609555736846,1.30707158,29373.0,29372.0,0.00036515]
[1609555737047,1.30707158,29373.0,29371.0,0.00036512]
[1609555737448,1.92148602,29373.0,29371.0,0.00036512]
[1609555738047,0.30707158,29373.0,29371.0,0.00036512]
[1609555738246,0.30707158,29373.0,29372.0,0.00036511]
[1609555738647,0.30707158,29373.0,29371.0,0.00036511]
[1609555738946,0.30707158,29373.0,29372.0,0.00036511]
[1609555739447,0.30707158,29373.0,29371.0,0.00036507]
[1609555739849,0.30707158,29373.0,29372.0,0.00036507]
[1609555740247,0.30707158,29373.0,29371.0,0.00036507]
[1609555740648,0.30707158,29373.0,29372.0,0.00036509]
[1609555741047,0.30707158,29373.0,29371.0,0.00036511]
[1609555741348,0.30707158,29373.0,29372.0,0.00036511]
[1609555741848,0.30707158,29373.0,29371.0,0.00036511]
[1609555742048,0.30707158,29373.0,29372.0,0.00036511]
[1609555742350,0.30707158,29373.0,29371.0,0.00036511]
[1609555742749,0.30707158,29373.0,29372.0,0.00036511]
[1609555743148,0.30707158,29373.0,29371.0,0.00036511]
[1609555743450,0.30707158,29373.0,29372.0,0.00036511]
[1609555743650,0.9212366,29373.0,29372.0,0.00036511]
[1609555744051,0.9212366,29373.0,29371.0,0.00036511]
[1609555744250,0.9212366,29373.0,29372.0,0.00036511]
[1609555744752,0.30707158,29373.0,29371.0,0.00036511]
[1609555744953,0.30707158,29373.0,29372.0,0.00036511]
[1609555745252,0.30707158,29373.0,29371.0,0.00036511]
[1609555745652,0.30707158,29373.0,29372.0,0.00036511]
[1609555746052,0.30707158,29373.0,29371.0,0.00036511]
[1609555746253,0.30707158,29373.0,29372.0,0.00036511]
[1609555746552,0.30707158,29373.0,29371.0,0.00036511]
[1609555746952,0.30707158,29373.0,29372.0,0.00036511]
[1609555747354,0.30707158,29373.0,29371.0,0.00036511]
[1609555747655,0.30707158,29373.0,29372.0,0.00036511]
[1609555748153,0.30707158,29373.0,29371.0,0.00036511]
[1609555748553,0.30707158,29373.0,29372.0,5.34926511]
[1609555749555,0.30707158,29373.0,29372.0,5.52969669]
[1609555759866,0.30707158,29373.0,29372.0,6.52969669]
[1609555760267,0.30707158,29373.0,29372.0,6.56867865]
[1609555761868,0.30707158,29373.0,29372.0,7.56867865]
[1609555762668,0.30707158,29373.0,29372.0,7.52969669]
[1609555762868,0.12664,29373.0,29372.0,7.52969669]
[1609555763068,0.13888,29381.0,29372.0,7.52969669]
[1609555763269,3.9378,29382.0,29372.0,7.52969669]
[1609555763469,0.0004145,29380.0,29373.0,0.00036502]
[1609555763670,0.0004145,29381.0,29377.0,0.18043158]
[1609555764072,0.00041452,29379.0,29377.0,0.18043158]
[1609555764270,0.12698,29379.0,29378.0,0.00036504]
[1609555764769,0.12739452,29379.0,29378.0,0.00036504]
[1609555765570,0.3078261,29379.0,29378.0,0.00036504]
[1609555765771,0.3078261,29379.0,29378.0,4.34056504]
[1609555769480,0.30741158,29379.0,29378.0,4.34056504]
[1609555769678,0.30782609,29379.0,29378.0,4.34056504]
[1609555772581,0.30741158,29379.0,29378.0,4.34056504]
[1609555774885,0.12698,29379.0,29378.0,4.34056504]
[1609555775384,0.02081768,29381.0,29378.0,4.34056504]
[1609555775784,0.02081768,29381.0,29379.0,0.18079664]
[1609555776286,0.02081768,29381.0,29380.0,0.00036506]
[1609555776786,0.02123218,29381.0,29380.0,0.00036506]
[1609555777790,0.20166376,29381.0,29380.0,0.00036506]
[1609555779691,0.20124926,29381.0,29380.0,0.00036506]
[1609555782295,0.32273926,29381.0,29380.0,0.00036506]
[1609555782996,5.97663926,29381.0,29380.0,0.00036506]
[1609555783195,5.97663926,29381.0,29376.0,0.00036506]
[1609555783395,5.97705379,29381.0,29380.0,0.00036508]
[1609555783595,0.32315379,29381.0,29380.0,0.00036508]
[1609555783798,0.30192158,29381.0,29377.0,0.00036508]
[1609555783998,0.30233612,29381.0,29380.0,0.00036508]
[1609555784199,0.30233612,29381.0,29378.0,0.00036508]
[1609555784200,0.00041454,29380.0,29378.0,0.00036508]
[1609555784598,0.30233612,29381.0,29380.0,0.00036508]
[1609555784798,0.92104778,29381.0,29379.0,0.00036508]
[1609555784998,0.92146231,29381.0,29380.0,0.00036508]
[1609555785199,0.92104778,29381.0,29380.0,0.00036508]
[1609555785501,0.92146231,29381.0,29378.0,0.00036508]
[1609555785900,0.92146231,29381.0,29380.0,0.00036508]
[1609555786100,0.71291453,29380.0,29379.0,0.00036508]
[1609555786304,0.7125,29380.0,29377.0,5.0317]
[1609555786502,1.35253441,29380.0,29377.0,5.0317]
[1609555786703,1.35294894,29380.0,29379.0,0.00036509]
[1609555786903,1.35253441,29380.0,29378.0,0.00036509]
[1609555787104,1.35294895,29380.0,29379.0,0.00036497]
[1609555787303,1.35253441,29380.0,29379.0,0.00036497]
[1609555787703,1.35294894,29380.0,29378.0,0.00036497]
[1609555787904,2.35294894,29380.0,29379.0,0.00036497]
[1609555788107,2.35253441,29380.0,29379.0,0.00036497]
[1609555788405,2.35294893,29380.0,29378.0,0.00036497]
[1609555788706,1.73375381,29380.0,29379.0,0.00036497]
[1609555788906,1.73333929,29380.0,29379.0,0.00036497]
[1609555789208,2.35304749,29380.0,29378.0,0.00036497]
[1609555789409,2.35304749,29380.0,29379.0,0.00036497]
[1609555789809,2.3322082,29380.0,29378.0,0.00036497]
[1609555790010,1.7337575,29380.0,29379.0,0.00036497]
[1609555790209,1.73334297,29380.0,29379.0,0.00036497]
[1609555790410,2.35267831,29380.0,29379.0,0.00036497]
[1609555790613,2.35309284,29380.0,29378.0,0.00036497]
[1609555790811,2.35309284,29380.0,29379.0,0.00036495]
[1609555791011,2.35267831,29380.0,29379.0,0.00036495]
[1609555791311,2.35309282,29380.0,29377.0,5.0317]
[1609555791511,1.64059282,29380.0,29379.0,0.00036495]
[1609555791913,1.64017831,29380.0,29375.0,0.03930559]
[1609555792111,4.6043,29378.0,29375.0,0.03894064]
[1609555792312,4.6043,29378.0,29376.0,0.00036495]
[1609555792613,4.6043,29378.0,29375.0,0.03930559]
[1609555792913,4.6043,29378.0,29377.0,0.00036495]
[1609555793116,4.6043,29378.0,29376.0,0.00036495]
[1609555793415,4.6043,29378.0,29375.0,0.03930559]
[1609555793615,4.6043,29378.0,29377.0,0.00036495]
[1609555794015,4.78514609,29378.0,29375.0,0.03930559]
[1609555794215,4.7855606,29378.0,29377.0,0.00036495]
[1609555794415,4.78514609,29378.0,29376.0,0.00036495]
[1609555794715,4.78514609,29378.0,29375.0,0.03930559]
[1609555795117,4.78514609,29378.0,29377.0,0.00036495]
[1609555795316,4.78514609,29378.0,29376.0,0.00036495]
[1609555795619,4.78514609,29378.0,29377.0,0.00036495]
[1609555796018,4.78514609,29378.0,29375.0,0.03930559]
[1609555796418,4.78514609,29378.0,29377.0,0.00036495]
[1609555796618,4.78514609,29378.0,29376.0,0.00036495]
[1609555796818,4.78514609,29378.0,29377.0,0.00036495]
[1609555797119,4.78514609,29378.0,29375.0,0.03894064]
[1609555797317,4.78514609,29378.0,29377.0,0.00036494]
[1609555797718,4.78514609,29378.0,29375.0,0.03930558]
[1609555797919,4.78514609,29378.0,29377.0,0.00036494]
[1609555798123,4.78514609,29378.0,29376.0,0.00036494]
[1609555798420,4.78514609,29378.0,29377.0,0.00036494]
[1609555798922,4.78514609,29378.0,29375.0,0.03930558]
[1609555799223,4.78514609,29378.0,29377.0,0.00036494]
[1609555799423,4.78514609,29378.0,29376.0,0.00036494]
[1609555799722,4.78514609,29378.0,29377.0,0.00036494]
[1609555800224,4.78514609,29378.0,29375.0,0.03930558]
[1609555800525,4.78514609,29378.0,29377.0,0.00036494]
[1609555800728,4.78514609,29378.0,29376.0,0.00036494]
[1609555801028,4.78514609,29378.0,29375.0,0.03930558]
[1609555801328,4.78514609,29378.0,29377.0,0.00036494]
[1609555801530,4.78514609,29378.0,29375.0,0.03894064]
[1609555801730,0.18084609,29378.0,29376.0,4.8208]
[1609555801930,0.18084609,29378.0,29377.0,0.00036494]
[1609555802832,0.18084609,29378.0,29377.0,0.03930322]
[1609555803735,0.18043158,29378.0,29377.0,0.03930322]
[1609555805936,0.95093158,29378.0,29377.0,0.03930322]
[1609555806339,0.95093158,29378.0,29377.0,0.00036494]
[1609555806537,0.95134608,29378.0,29377.0,0.00036494]
[1609555808237,0.95093158,29378.0,29377.0,0.00036494]
[1609555809640,0.18043158,29378.0,29377.0,0.00036494]
[1609555810039,0.18043158,29378.0,29377.0,4.00533158]
[1609555810239,0.18043158,29378.0,29377.0,5.0056965]
[1609555810640,0.18043158,29378.0,29377.0,5.04463306]
[1609555819653,0.17836245,29378.0,29377.0,5.04463306]
[1609555820957,0.12149,29381.0,29377.0,5.04463306]
[1609555821157,4.82113319,29385.0,29377.0,5.04463306]
[1609555821356,4.82113319,29385.0,29378.0,0.03929544]
[1609555822055,4.8106,29385.0,29378.0,0.03929544]
[1609555822256,4.8106,29385.0,29384.0,0.18043158]
[1609555822457,4.82112901,29385.0,29384.0,0.18043158]
[1609555822660,4.82112901,29385.0,29384.0,0.18079644]
[1609555823462,0.30292901,29385.0,29384.0,0.18079644]
[1609555824363,0.48336059,29385.0,29384.0,0.18079644]
[1609555824962,0.47283158,29385.0,29384.0,0.18079644]
[1609555827763,0.62972158,29385.0,29384.0,0.18079644]
[1609555844887,0.62972158,29385.0,29384.0,0.21971785]
[1609555845089,0.44929,29385.0,29384.0,0.03928627]
[1609555845592,1.23439,29385.0,29384.0,0.03928627]
[1609555845992,1.23439,29385.0,29377.0,0.11314822]
[1609555846193,1.23439,29385.0,29384.0,0.00036483]
[1609555846594,1.41482158,29385.0,29384.0,0.18043158]
[1609555846793,1.41482158,29385.0,29384.0,0.18079641]
[1609555846994,0.62972158,29385.0,29384.0,0.18079641]
[1609555848594,0.62972158,29385.0,29384.0,0.21969138]
[1609555849996,0.62972158,29385.0,29384.0,0.18079641]
[1609555850696,0.62972158,29385.0,29384.0,0.21969163]
[1609555851297,0.44929,29385.0,29384.0,0.03926005]
[1609555851696,0.44929,29385.0,29383.0,0.03925996]
[1609555851897,0.44929,29385.0,29384.0,4.6366]
[1609555852297,0.44929,29385.0,29384.0,4.67585967]
[1609555852697,0.62972158,29385.0,29384.0,4.85629125]
[1609555853902,0.62972158,29385.0,29384.0,0.21969125]
[1609555856205,0.62972158,29385.0,29384.0,1.21969125]
[1609555856407,0.62972158,29385.0,29384.0,0.21969125]
[1609555856606,6.17992158,29385.0,29384.0,0.21969125]
[1609555856808,6.18033594,29385.0,29384.0,0.18079635]
[1609555859713,6.18033594,29385.0,29384.0,0.00036477]
[1609555860111,6.18033594,29385.0,29376.0,0.03925999]
[1609555860312,0.63013594,29385.0,29376.0,0.03925999]
[1609555860512,5.36356,29377.0,29376.0,0.03925999]
[1609555860713,5.46436,29377.0,29376.0,0.03925999]
[1609555860913,5.64520607,29377.0,29376.0,0.00036479]
[1609555861915,6.64520607,29377.0,29376.0,0.00036479]
[1609555862115,1.42830607,29377.0,29376.0,0.00036479]
[1609555862516,1.42789158,29377.0,29376.0,0.00036479]
[1609555862916,1.42789158,29377.0,29375.0,0.00036486]
[1609555863116,1.42789158,29377.0,29376.0,0.00036486]
[1609555863717,4.4521,29376.0,29375.0,0.00036486]
[1609555863919,4.4521,29376.0,29371.0,1.18043158]
[1609555864117,4.4521,29376.0,29375.0,0.00036485]
[1609555864318,4.4521,29376.0,29372.0,0.00036485]
[1609555864821,0.18043158,29373.0,29372.0,0.00036485]
[1609555865620,0.91533158,29373.0,29372.0,0.00036485]
[1609555868925,0.91533158,29373.0,29371.0,1.18043158]
[1609555869125,0.91533158,29373.0,29372.0,0.00036485]
[1609555874233,0.91326204,29373.0,29372.0,0.00036485]
[1609555877440,0.17836204,29373.0,29372.0,0.00036485]
[1609555877641,0.14666,29377.0,29372.0,0.00036485]
[1609555877841,0.01482408,29380.0,29372.0,4.69926485]
[1609555878041,0.01482408,29380.0,29373.0,1.0]
[1609555878244,0.00432286,29380.0,29373.0,1.03925944]
[1609555878441,0.00432926,29383.0,29373.0,1.03925944]
[1609555878641,0.00432926,29383.0,29374.0,0.03925602]
[1609555879142,0.00432926,29383.0,29382.0,0.18043158]
[1609555879342,0.00432926,29383.0,29382.0,1.18043158]
[1609555879543,1.08878365,29385.0,29382.0,1.18043158]
[1609555879544,0.44929,29385.0,29382.0,1.18079633]
[1609555879945,0.44929,29385.0,29383.0,0.00036475]
[1609555886152,0.44929,29385.0,29383.0,0.54916475]
[1609555886351,0.44929,29385.0,29383.0,1.54916475]
[1609555886654,0.15689,29385.0,29384.0,0.00036475]
[1609555887052,0.00432846,29390.0,29384.0,0.00036475]
[1609555887252,0.00432846,29390.0,29388.0,5.2396]
[1609555887453,1.0,29391.0,29389.0,1.0]
[1609555887753,1.0,29391.0,29389.0,1.00036467]
[1609555887954,0.18043158,29392.0,29389.0,1.00036467]
[1609555888155,0.18043158,29392.0,29390.0,0.00036467]
[1609555889058,0.18043158,29392.0,29391.0,0.18043158]
[1609555889259,0.18043158,29392.0,29391.0,1.18043158]
[1609555889458,0.18043158,29392.0,29391.0,1.73833158]
[1609555889658,0.18043158,29392.0,29391.0,1.73869625]
[1609555889858,0.18043158,29392.0,29391.0,0.73869625]
[1609555890860,0.18043158,29392.0,29391.0,1.73869625]
[1609555892665,0.18043158,29392.0,29391.0,1.18079625]
[1609555892864,4.24213158,29392.0,29391.0,0.18079625]
[1609555893165,4.24213158,29392.0,29391.0,0.00036467]
[1609555893567,4.24213158,29392.0,29386.0,0.00036469]
[1609555893768,4.24213158,29392.0,29391.0,0.00036473]
[1609555893966,5.24213158,29392.0,29391.0,0.00036473]
[1609555894166,5.24213158,29392.0,29378.0,4.5065]
[1609555894167,5.24213158,29392.0,29387.0,0.00036473]
[1609555894367,5.24213158,29392.0,29391.0,0.00036473]
[1609555894569,5.24213158,29392.0,29388.0,0.00036473]
[1609555894767,5.24213158,29392.0,29378.0,4.5065]
[1609555894967,5.24213158,29392.0,29381.0,1.0]
[1609555895167,5.0617,29392.0,29384.0,0.18043158]
[1609555895368,1.0,29392.0,29384.0,0.18043158]
[1609555895567,5.76583,29389.0,29384.0,0.18043158]
[1609555895768,5.76583,29389.0,29385.0,0.00036474]
[1609555897173,0.18043158,29386.0,29385.0,0.00036474]
[1609555901675,0.18043158,29386.0,29384.0,0.00036471]
[1609555901874,0.18043158,29386.0,29385.0,0.00036473]
[1609555902074,5.82053158,29386.0,29385.0,0.00036473]
[1609555902273,5.82053158,29386.0,29380.0,0.00036475]
[1609555902475,5.82053158,29386.0,29385.0,0.00036475]
[1609555902674,5.82053158,29386.0,29381.0,0.00036475]
[1609555902874,1.18043158,29386.0,29381.0,0.00036475]
[1609555903073,5.3958,29381.0,29380.0,0.00036475]
[1609555903275,5.51128,29381.0,29379.0,0.18043158]
[1609555903476,0.18043158,29380.0,29379.0,0.18043158]
[1609555903977,0.18043158,29380.0,29379.0,0.18079637]
[1609555908281,0.18043158,29380.0,29379.0,0.18043158]
[1609555908481,0.18043158,29380.0,29379.0,0.18079681]
[1609555908781,0.18043158,29380.0,29379.0,0.18116204]
[1609555908981,0.18043158,29380.0,29379.0,0.18152727]
[1609555914691,0.94983158,29380.0,29379.0,0.18152727]
[1609555914891,0.94983158,29380.0,29379.0,0.00109569]
[1609555915091,0.18043158,29380.0,29379.0,0.00109569]
[1609555915491,0.18043158,29380.0,29379.0,5.82272727]
[1609555915894,0.18043158,29380.0,29379.0,6.82272727]
[1609555917095,0.11548,29381.0,29379.0,6.82272727]
[1609555917294,0.0148159,29387.0,29379.0,6.82272727]
[1609555917495,0.0148159,29387.0,29380.0,0.00036518]
[1609555917696,0.0148159,29387.0,29386.0,0.18043158]
[1609555918096,0.11613,29389.0,29386.0,0.18043158]
[1609555918097,0.13094504,29389.0,29386.0,0.18043158]
[1609555918296,0.13094504,29389.0,29386.0,0.18079674]
[1609555918497,0.13094504,29389.0,29387.0,0.00036516]
[1609555919596,0.18043158,29388.0,29387.0,0.00036516]
[1609555931915,6.06804597,29388.0,29380.0,0.03944729]
[1609555932113,6.06804597,29388.0,29380.0,0.03908213]
[1609555932114,0.18043158,29381.0,29380.0,0.03908213]
[1609555932315,0.33394158,29381.0,29380.0,0.03908213]
[1609555932515,0.33394158,29381.0,29378.0,0.18043158]
[1609555932716,0.33394158,29381.0,29380.0,0.03944696]
[1609555932916,0.33394158,29381.0,29379.0,0.03944708]
[1609555933216,0.33394158,29381.0,29380.0,0.00036518]
[1609555933718,0.33394158,29381.0,29379.0,0.03944769]
[1609555933916,0.33394158,29381.0,29380.0,0.00036518]
[1609555934217,0.33394158,29381.0,29379.0,0.03944769]
[1609555934521,0.33394158,29381.0,29380.0,0.00036518]
[1609555934722,0.99334158,29381.0,29380.0,0.00036518]
[1609555935120,0.99334158,29381.0,29376.0,0.03944987]
[1609555935319,0.99334158,29381.0,29380.0,0.0003652]
[1609555935520,0.99334158,29381.0,29377.0,0.0003652]
[1609555935919,0.99334158,29381.0,29376.0,1.03944987]
[1609555936120,0.99334158,29381.0,29380.0,0.18043158]
[1609555936720,0.99334158,29381.0,29380.0,0.18079678]
[1609555937122,0.99334158,29381.0,29380.0,0.18043158]
[1609555937521,0.99334158,29381.0,29380.0,0.21987887]
[1609555937721,0.99334158,29381.0,29380.0,0.22024404]
[1609555941625,0.99334158,29381.0,29380.0,0.00073034]
[1609555942126,0.99127244,29381.0,29380.0,0.00073034]
[1609555943527,0.33187244,29381.0,29380.0,0.00073034]
[1609555944728,0.33187244,29381.0,29380.0,0.00036517]
[1609555945231,0.33187244,29381.0,29377.0,0.03945145]
[1609555946130,0.33187244,29381.0,29379.0,0.18043158]
[1609555946530,0.33187244,29381.0,29380.0,0.03944975]
[1609555960356,0.33187244,29381.0,29380.0,1.03944975]
[1609555960554,0.15351,29381.0,29380.0,5.59024975]
[1609555960854,0.01476638,29386.0,29380.0,5.59024975]
[1609555961254,0.01476638,29386.0,29381.0,0.03944081]
[1609555961958,0.01476638,29386.0,29381.0,1.03944081]
[1609555962160,0.00430875,29387.0,29382.0,1.0]
[1609555962360,0.00430875,29387.0,29386.0,0.18043158]
[1609555962563,0.00430875,29387.0,29386.0,1.18043158]
[1609555963060,0.00430875,29387.0,29386.0,1.21987209]
[1609555963962,0.11613,29389.0,29386.0,1.1807967]
[1609555964161,0.11613,29389.0,29386.0,1.21987052]
[1609555964361,0.18043158,29387.0,29386.0,1.21987052]
[1609555964561,0.18043158,29387.0,29386.0,1.18043158]
[1609555964761,0.18043158,29387.0,29386.0,1.18079669]
[1609555965262,0.32428158,29387.0,29386.0,1.18079669]
[1609555969469,0.32428158,29387.0,29386.0,1.18043158]
[1609555969669,0.32428158,29387.0,29386.0,1.18079644]
[1609555969869,0.32428158,29387.0,29386.0,1.84849644]
[1609555971073,0.32428158,29387.0,29386.0,0.18079644]
[1609555971271,4.27198158,29387.0,29386.0,0.00036486]
[1609555971772,4.27198158,29387.0,29383.0,0.00036496]
[1609555971972,5.27198158,29387.0,29383.0,0.00036496]
[1609555972172,0.00041445,29386.0,29383.0,0.00036496]
[1609555972373,0.18043158,29384.0,29382.0,0.00036501]
[1609555972574,0.7507,29383.0,29381.0,1.99736922]
[1609555973174,0.7507,29383.0,29382.0,0.000365]
[1609555974678,0.7507,29383.0,29378.0,0.000365]
[1609555975078,0.7507,29383.0,29382.0,0.000365]
[1609555975278,0.7507,29383.0,29379.0,0.000365]
[1609555975479,0.7507,29383.0,29382.0,0.000365]
[1609555975780,0.7507,29383.0,29380.0,0.00036502]
[1609555975979,1.75111448,29383.0,29382.0,0.00036502]
[1609555976281,1.75111448,29383.0,29376.0,0.00036502]
[1609555976479,0.18043158,29377.0,29375.0,0.18043158]
[1609555976679,0.32033158,29377.0,29375.0,0.18043158]
[1609555976880,0.32033158,29377.0,29376.0,0.00036501]
[1609555977279,5.98873158,29377.0,29376.0,0.00036501]
[1609555977682,5.98873158,29377.0,29375.0,0.18043158]
[1609555977882,5.98873158,29377.0,29376.0,0.000365]
[1609555978081,0.32033158,29377.0,29376.0,0.00073]
[1609555978481,4.59863158,29377.0,29376.0,0.00073]
[1609555981587,4.59863158,29377.0,29376.0,0.000365]
[1609555981789,4.59863158,29377.0,29376.0,0.00073001]
[1609555982793,0.32033158,29377.0,29376.0,0.00073001]
[1609555983492,5.53733158,29377.0,29376.0,0.00073001]
[1609555984993,5.53733158,29377.0,29376.0,0.00036501]
[1609555987696,0.32033158,29377.0,29376.0,0.00036501]
[1609555997610,0.32033158,29377.0,29371.0,0.00036501]
[1609555997811,0.32033158,29377.0,29376.0,0.00036501]
[1609555998211,0.32033158,29377.0,29372.0,0.00036501]
[1609555998410,0.32033158,29377.0,29376.0,0.00036501]
[1609555998611,0.32033158,29377.0,29373.0,0.00036501]
[1609555998810,0.32033158,29377.0,29376.0,0.00036501]
[1609555999110,0.32033158,29377.0,29371.0,0.00036501]
[1609555999511,0.32033158,29377.0,29376.0,0.00036501]
[1609555999711,4.98943158,29377.0,29372.0,0.00036501]
[1609555999913,4.98943158,29377.0,29376.0,0.00036501]
[1609556000112,5.98943158,29377.0,29376.0,0.00036501]
[1609556000311,5.98943158,29377.0,29373.0,0.00036501]
[1609556000512,5.98943158,29377.0,29376.0,0.00036501]
[1609556000712,5.98943158,29377.0,29374.0,0.00036501]
[1609556000913,5.98943158,29377.0,29376.0,0.00036503]
[1609556001314,5.98943158,29377.0,29370.0,0.03934904]
[1609556001514,5.98943158,29377.0,29376.0,0.00036503]
[1609556001714,5.98943158,29377.0,29371.0,0.00036503]
[1609556002114,5.98943158,29377.0,29370.0,0.03934904]
[1609556002316,5.98943158,29377.0,29372.0,0.00036503]
[1609556002517,5.98943158,29377.0,29371.0,0.00036503]
[1609556002718,0.18043158,29372.0,29371.0,0.00036503]
[1609556002917,0.18043158,29372.0,29369.0,0.18043158]
[1609556003116,0.97593158,29372.0,29371.0,0.00036506]
[1609556003317,0.97593158,29372.0,29370.0,0.00036506]
[1609556003617,0.97593158,29372.0,29371.0,0.00036506]
[1609556004216,0.97593158,29372.0,29370.0,0.00036506]
[1609556004417,0.97593158,29372.0,29371.0,0.00036506]
[1609556004918,0.97593158,29372.0,29370.0,0.00036506]
[1609556005120,0.97593158,29372.0,29371.0,0.00036506]
[1609556005418,0.97593158,29372.0,29370.0,0.00036506]
[1609556005718,0.97593158,29372.0,29371.0,0.00036506]
[1609556006219,0.97593158,29372.0,29370.0,0.00036506]
[1609556006419,0.18043158,29372.0,29370.0,0.00036506]
[1609556006619,0.18043158,29372.0,29371.0,0.00036506]
[1609556006819,5.86313158,29372.0,29371.0,0.00036506]
[1609556007018,5.86313158,29372.0,29363.0,0.03935273]
[1609556007218,5.86313158,29372.0,29371.0,0.00036509]
[1609556007418,5.96453158,29372.0,29371.0,0.00036509]
[1609556007619,5.96453158,29372.0,29363.0,0.03935273]
[1609556007820,5.96453158,29372.0,29363.0,0.03898764]
[1609556008020,5.96453158,29372.0,29364.0,0.00036511]
[1609556008321,5.96453158,29372.0,29363.0,0.03935275]
[1609556008721,5.7841,29372.0,29365.0,0.00036511]
[1609556008919,0.00041461,29371.0,29364.0,0.00036513]
[1609556009119,0.00041461,29371.0,29366.0,0.00036513]
[1609556009520,0.00041461,29371.0,29362.0,1.81332729]
[1609556009521,0.00041461,29371.0,29365.0,0.00036513]
[1609556009720,0.00041461,29371.0,29367.0,0.00036513]
[1609556009920,5.7841,29372.0,29366.0,0.00036513]
[1609556010120,5.7841,29372.0,29368.0,0.00036513]
[1609556010422,5.7841,29372.0,29363.0,0.00036513]
[1609556010621,5.78836424,29372.0,29363.0,0.00036513]
[1609556010821,5.78836424,29372.0,29369.0,0.00036515]
[1609556011021,5.78836424,29372.0,29364.0,0.00036515]
[1609556011222,5.78836424,29372.0,29370.0,0.00036515]
[1609556011622,5.78836424,29372.0,29365.0,0.00036515]
[1609556011822,5.7841,29372.0,29371.0,0.00036515]
[1609556012023,5.7841,29372.0,29366.0,0.00036515]
[1609556012222,5.78451462,29372.0,29371.0,0.00036515]
[1609556012424,5.78879001,29372.0,29371.0,0.00036515]
[1609556012623,5.78879001,29372.0,29361.0,0.03936287]
[1609556012823,5.78837539,29372.0,29371.0,0.00036515]
[1609556013025,5.78837539,29372.0,29362.0,0.00036515]
[1609556013224,5.78837539,29372.0,29361.0,0.03899772]
[1609556013424,5.78837539,29372.0,29361.0,0.03936287]
[1609556013825,5.7841,29372.0,29361.0,0.00036515]
[1609556014226,5.7841,29372.0,29362.0,0.00036515]
[1609556014626,5.7841,29372.0,29361.0,0.03936076]